[Event "FIDE World Junior U20-ch Girls 2025"]
[Site "Petrovac"]
[Date "2025.02.28"]
[Round "4.5"]
[White "Hrebenshchykova, Yelyzaveta"]
[Black "Savitha Shri B"]
[Result "1-0"]
[Annotator "RC"]
[ECO "B52"]
[WhiteElo "2259"]
[BlackElo "2332"]
[PlyCount "125"]
[EventDate "2025.02.23"]
[EventType "swiss"]
[EventCountry "MNE"]
[SourceTitle "playchess.com"]
[Source "ChessBase"]
[SourceQuality "1"]
[TimeControl "40/5400+30:1800+30"]

1. e4 {[%emt 0:00:01]} c5 {[%emt 0:04:48]} 2. Nf3 {[%emt 0:00:05]} d6 {[%emt 0:00:04]} 3. Bb5+ {[%emt 0:11:50]} Bd7 {[%emt 0:00:22]} 4. Bxd7+ {[%emt 0:00:08]} Qxd7 {[%emt 0:04:43]} 5. O-O {[%emt 0:00:50]} g6 {[%emt 0:04:05]} 6. d4 {[%emt 0:11:08]} cxd4 {[%emt 0:02:04]} 7. Nxd4 {[%emt 0:00:04]} Nf6 {[%emt 0:02:12]} 8. f3 {[%emt 0:02:46]} Bg7 {[%emt 0:00:16]} 9. c4 {[%emt 0:00:45]} Nc6 {[%emt 0:01:27]} 10. Be3 {[%emt 0:01:58]} Rc8 {[%emt 0:06:13]} 11. Nc3 {[%emt 0:10:04]} Nxd4 {[%emt 0:05:03]} 12. Qxd4 {[%emt 0:00:09]} O-O {[%emt 0:00:10]} 13. Qd3 {[%emt 0:01:27]} b6 {[%emt 0:15:39]} 14. Rac1 {[%emt 0:19:50]} Qb7 {[%emt 0:01:45]} 15. b3 {[%emt 0:02:48]} Nd7 {[%emt 0:02:33]} 16. Nd5 {[%emt 0:00:47]} Nc5 {[%emt 0:04:39]} 17. Qd2 {[%emt 0:02:03]} Rfe8 {[%emt 0:07:53]} 18. Rc2 {[%emt 0:03:21]} a5 {[%emt 0:02:56]} 19. Rb1 {[%emt 0:08:02]} e6 {[%emt 0:06:22]} 20. Nc3 {[%emt 0:00:15]} Rcd8 {[%emt 0:00:37]} 21. Rd1 {[%emt 0:01:29]} Na6 {[%emt 0:06:59]} 22. Qf2 {[%emt 0:01:32]} Bxc3 {[%emt 0:09:47]} 23. Rxc3 {[%emt 0:00:05]} Nc5 {[%emt 0:00:02]} 24. Qh4 {[%emt 0:05:28]} f5 {[%emt 0:00:52]} 25. exf5 {[%emt 0:03:38]} exf5 {[%emt 0:00:07]} 26. Bd4 {[%emt 0:06:22]} Qf7 {[%emt 0:00:52]} 27. Rc2 {[%emt 0:00:21]} d5 {[%emt 0:04:10]} 28. Bb2 {[%emt 0:00:49]} Qe6 {[%emt 0:02:04]} 29. Qd4 {[%emt 0:01:59]} Qe3+ {[%emt 0:00:45]} 30. Qxe3 {[%emt 0:00:03]} Rxe3 {[%emt 0:00:04]} 31. cxd5 {[%emt 0:00:03]} Rd3 {[%emt 0:01:59]} 32. Rxd3 {[%emt 0:02:09]} Nxd3 {[%emt 0:00:04]} 33. Bd4 {[%emt 0:00:03]} Rxd5 {[%emt 0:02:08]} 34. Bxb6 {[%emt 0:00:04]} Nb4 {[%emt 0:02:06]} 35. Re2 {[%emt 0:00:34]} Rd1+ {[%emt 0:00:45]} 36. Kf2 {[%emt 0:00:20]} f4 {[%emt 0:00:21]} 37. g3 {[%emt 0:02:06]} Nd3+ {[%emt 0:00:36]} 38. Kg2 {[%emt 0:00:04]} Ne1+ {[%emt 0:00:30]} 39. Kh3 {[%emt 0:00:00]} Nxf3 {[%emt 0:00:00]} 40. Kg4 {[%emt 0:00:00]} Rf1 {[%emt 0:00:00]} 41. gxf4 {[%emt 0:09:01]} h5+ {[%emt 0:17:29]} 42. Kg3 {[%emt 0:03:13]} Ne1 {[%emt 0:00:07]} 43. Bxa5 {[%emt 0:08:33]} Rf3+ {[%emt 0:00:12]} 44. Kh4 {[%emt 0:00:02]} Rxf4+ {[%emt 0:01:36]} 45. Kg5 {[%emt 0:00:05]} Rg4+ {[%emt 0:00:04]} 46. Kf6 {[%emt 0:00:05]} Nf3 {[%emt 0:00:44]} 47. Bc3 {[%emt 0:04:35]} Kh7 {[%emt 0:02:12]} 48. a4 {[%emt 0:00:31]} Rf4+ {[%emt 0:00:27]} 49. Ke7 {[%emt 0:01:40]} Nh4 {[%emt 0:02:08]} 50. a5 {[%emt 0:05:40]} Rf3 {[%emt 0:00:47]} 51. Rc2 {[%emt 0:01:12]} Rd3 {[%emt 0:02:01]} 52. b4 {[%emt 0:02:07]} Nf5+ {[%emt 0:00:05]} 53. Ke6 {[%emt 0:00:02]} Rd6+ {[%emt 0:01:56]} 54. Ke5 {[%emt 0:00:03]} Rc6 {[%emt 0:00:05]} 55. Rc1 {[%emt 0:00:46]} h4 {[%emt 0:00:43]} 56. Bd2 {[%emt 0:00:34]} Rd6 {[%emt 0:00:27]} 57. Rc7+ {[%emt 0:00:43]} Kg8 {[%emt 0:00:05]} 58. Bc3 {[%emt 0:00:18]} Rd8 {[%emt 0:03:50]} 59. a6 {[%emt 0:02:06]} Re8+ {[%emt 0:01:12]} 60. Kf6 {[%emt 0:01:09]} Nd6 {[%emt 0:00:53]} 61. a7 {[%emt 0:01:19]} Ra8 {[%emt 0:00:05]} 62. Rg7+ {[%emt 0:01:09]} Kf8 {[%emt 0:01:38]} 63. Rh7 {[%emt 0:00:22]} 1-0

[Event "FIDE World Junior U20-ch Girls 2025"]
[Site "Petrovac"]
[Date "2025.02.28"]
[Round "4.6"]
[White "Velpula Sarayu"]
[Black "Kirtadze, Anastasia"]
[Result "1-0"]
[Annotator "ChessBase"]
[ECO "B12"]
[WhiteElo "2315"]
[BlackElo "2218"]
[PlyCount "113"]
[EventDate "2025.02.23"]
[EventType "swiss"]
[EventCountry "MNE"]
[SourceTitle "playchess.com"]
[Source "ChessBase"]
[SourceQuality "1"]
[TimeControl "40/5400+30:1800+30"]

1. e4 {[%emt 0:00:29]} c6 {[%emt 0:00:12]} 2. d4 {[%emt 0:01:52]} d5 {[%emt 0:00:05]} 3. e5 {[%emt 0:00:18]} Bf5 {[%emt 0:00:05]} 4. Nf3 {[%emt 0:00:23]} e6 {[%emt 0:03:12]} 5. Be2 {[%emt 0:00:12]} c5 {[%emt 0:04:20]} 6. O-O {[%emt 0:02:05]} Nc6 {[%emt 0:01:26]} 7. Be3 {[%emt 0:07:32]} c4 {[%emt 0:11:14]} 8. b3 {[%emt 0:13:34]} b5 {[%emt 0:00:11]} 9. c3 {[%emt 0:02:57]} h6 {[%emt 0:03:19]} 10. a4 {[%emt 0:12:01]} a6 {[%emt 0:02:31]} 11. Na3 {[%emt 0:02:46]} Qb8 {[%emt 0:10:15]} 12. b4 {[%emt 0:07:04]} g5 {[%emt 0:04:00]} 13. Ne1 {[%emt 0:06:32]} Nge7 {[%emt 0:03:29]} 14. g4 {[%emt 0:09:14]} Bh7 {[%emt 0:03:55]} 15. Ng2 {[%emt 0:00:30]} Ng6 {[%emt 0:02:11]} 16. Qd2 {[%emt 0:01:38]} Rg8 {[%emt 0:05:33]} 17. Bd1 {[%emt 0:09:12]} Be7 {[%emt 0:06:35]} 18. h3 {[%emt 0:02:02]} Kd7 {[%emt 0:04:31]} 19. Bc2 {[%emt 0:02:45]} Rg7 {[%emt 0:03:59]} 20. f4 {[%emt 0:10:07]} gxf4 {[%emt 0:01:59]} 21. Bxf4 {[%emt 0:00:10]} Nxf4 {[%emt 0:13:12]} 22. Nxf4 {[%emt 0:00:06]} Bg6 {[%emt 0:03:07]} 23. Nxg6 {[%emt 0:02:23]} fxg6 {[%emt 0:00:01]} 24. Qxh6 {[%emt 0:01:26]} Qg8 {[%emt 0:00:20]} 25. axb5 {[%emt 0:01:15]} Nd8 {[%emt 0:03:50]} 26. Qe3 {[%emt 0:01:00]} Nf7 {[%emt 0:01:29]} 27. bxa6 {[%emt 0:01:21]} Rh7 {[%emt 0:00:08]} 28. Kg2 {[%emt 0:01:38]} Ng5 {[%emt 0:04:27]} 29. Rh1 {[%emt 0:00:10]} Rxa6 {[%emt 0:00:59]} 30. h4 {[%emt 0:00:19]} Nf7 {[%emt 0:00:56]} 31. h5 {[%emt 0:01:31]} gxh5 {[%emt 0:02:03]} 32. Bxh7 {[%emt 0:00:06]} Qxh7 {[%emt 0:00:10]} 33. Qe2 {[%emt 0:01:10]} Ng5 {[%emt 0:02:41]} 34. Rxh5 {[%emt 0:01:06]} Qg6 {[%emt 0:00:30]} 35. Nc2 {[%emt 0:00:20]} Rxa1 {[%emt 0:00:31]} 36. Nxa1 {[%emt 0:00:01]} Qb1 {[%emt 0:00:31]} 37. Rh1 {[%emt 0:00:11]} Qg6 {[%emt 0:00:19]} 38. Nc2 {[%emt 0:00:44]} Ne4 {[%emt 0:00:01]} 39. Rh3 {[%emt 0:00:21]} Bg5 {[%emt 0:00:23]} 40. b5 {[%emt 0:01:21]} Bd2 {[%emt 0:00:10]} 41. Ne3 {[%emt 0:02:18]} Bxc3 {[%emt 0:03:34]} 42. Qa2 {[%emt 0:00:40]} Bxd4 {[%emt 0:05:18]} 43. Qa6 {[%emt 0:03:44]} Bxe5 {[%emt 0:00:57]} 44. Qa7+ {[%emt 0:04:49]} Ke8 {[%emt 0:08:27]} 45. Rh7 {[%emt 0:15:29]} Kf8 {[%emt 0:00:55]} 46. Qa8+ {[%emt 0:03:46]} Qe8 {[%emt 0:00:06]} 47. Qxe8+ {[%emt 0:00:33]} Kxe8 {[%emt 0:00:01]} 48. b6 {[%emt 0:01:11]} Kd8 {[%emt 0:06:10]} 49. b7 {[%emt 0:00:52]} Bb8 {[%emt 0:00:11]} 50. Nc2 {[%emt 0:01:04]} e5 {[%emt 0:04:04]} 51. Nb4 {[%emt 0:00:19]} Bd6 {[%emt 0:01:21]} 52. Nxd5 {[%emt 0:00:50]} c3 {[%emt 0:00:33]} 53. Rh6 {[%emt 0:00:32]} Kd7 {[%emt 0:02:11]} 54. Rxd6+ {[%emt 0:00:08]} Kxd6 {[%emt 0:00:01]} 55. Nxc3 {[%emt 0:00:16]} Nxc3 {[%emt 0:00:36]} 56. b8=Q+ {[%emt 0:00:05]} Kd5 {[%emt 0:00:06]} 57. g5 {[%emt 0:00:09]} 1-0

[Event "FIDE World Junior U20-ch Girls 2025"]
[Site "Petrovac"]
[Date "2025.02.28"]
[Round "4.7"]
[White "Omonova, Umida"]
[Black "Toncheva, Nadya"]
[Result "1-0"]
[Annotator "ChessBase"]
[ECO "B47"]
[WhiteElo "2228"]
[BlackElo "2311"]
[PlyCount "97"]
[EventDate "2025.02.23"]
[EventType "swiss"]
[EventCountry "MNE"]
[SourceTitle "playchess.com"]
[Source "ChessBase"]
[SourceQuality "1"]
[TimeControl "40/5400+30:1800+30"]

1. e4 {[%emt 0:00:58]} c5 {[%emt 0:00:05]} 2. Nf3 {[%emt 0:00:09]} e6 {[%emt 0:00:05]} 3. d4 {[%emt 0:00:32]} cxd4 {[%emt 0:00:05]} 4. Nxd4 {[%emt 0:00:05]} Nc6 {[%emt 0:00:04]} 5. Nc3 {[%emt 0:00:27]} Qc7 {[%emt 0:00:07]} 6. g3 {[%emt 0:00:21]} a6 {[%emt 0:00:18]} 7. Bg2 {[%emt 0:01:57]} Nf6 {[%emt 0:01:05]} 8. O-O {[%emt 0:00:08]} Be7 {[%emt 0:02:06]} 9. Re1 {[%emt 0:00:22]} Nxd4 {[%emt 0:03:34]} 10. Qxd4 {[%emt 0:00:14]} d6 {[%emt 0:00:16]} 11. e5 {[%emt 0:00:13]} dxe5 {[%emt 0:00:20]} 12. Qxe5 {[%emt 0:00:08]} Qxe5 {[%emt 0:00:38]} 13. Rxe5 {[%emt 0:00:19]} O-O {[%emt 0:07:14]} 14. Re1 {[%emt 0:00:05]} Nd7 {[%emt 0:12:29]} 15. Be3 {[%emt 0:08:38]} Bc5 {[%emt 0:24:12]} 16. Rad1 {[%emt 0:10:06]} Ra7 {[%emt 0:02:10]} 17. Bf4 {[%emt 0:15:23]} Bb4 {[%emt 0:07:37]} 18. a3 {[%emt 0:01:13]} Bxc3 {[%emt 0:03:46]} 19. bxc3 {[%emt 0:00:02]} e5 {[%emt 0:00:12]} 20. Bxe5 {[%emt 0:08:01]} Nxe5 {[%emt 0:00:06]} 21. Rxe5 {[%emt 0:00:05]} b5 {[%emt 0:01:19]} 22. Rc5 {[%emt 0:01:23]} Be6 {[%emt 0:02:45]} 23. Be4 {[%emt 0:07:11]} g6 {[%emt 0:00:31]} 24. f3 {[%emt 0:01:01]} Kg7 {[%emt 0:01:35]} 25. Kf2 {[%emt 0:00:15]} Re8 {[%emt 0:05:09]} 26. Rd6 {[%emt 0:01:43]} Bc4 {[%emt 0:04:09]} 27. g4 {[%emt 0:02:52]} Ree7 {[%emt 0:01:11]} 28. h4 {[%emt 0:06:16]} Re8 {[%emt 0:06:28]} 29. Ke3 {[%emt 0:02:57]} Re6 {[%emt 0:01:52]} 30. Rxe6 {[%emt 0:01:03]} Bxe6 {[%emt 0:00:05]} 31. Rc6 {[%emt 0:01:07]} Bc4 {[%emt 0:07:34]} 32. Kd4 {[%emt 0:02:55]} Rd7+ {[%emt 0:00:04]} 33. Ke3 {[%emt 0:01:03]} Re7 {[%emt 0:00:24]} 34. g5 {[%emt 0:00:58]} a5 {[%emt 0:00:50]} 35. Kf4 {[%emt 0:06:31]} Rd7 {[%emt 0:00:34]} 36. Ke5 {[%emt 0:02:56]} Rd1 {[%emt 0:01:50]} 37. a4 {[%emt 0:02:06]} Ra1 {[%emt 0:02:31]} 38. axb5 {[%emt 0:00:06]} Bxb5 {[%emt 0:00:05]} 39. Rc5 {[%emt 0:00:44]} Bd7 {[%emt 0:00:27]} 40. Bd5 {[%emt 0:00:27]} a4 {[%emt 0:01:28]} 41. Kd6 {[%emt 0:33:47]} Be8 {[%emt 0:09:33]} 42. Rc8 {[%emt 0:00:00]} Re1 {[%emt 0:00:14]} 43. Ra8 {[%emt 0:00:00]} Kf8 {[%emt 0:02:02]} 44. c4 {[%emt 0:00:00]} Re7 {[%emt 0:01:14]} 45. c5 {[%emt 0:00:00]} Rd7+ {[%emt 0:00:54]} 46. Ke5 {[%emt 0:00:00]} Re7+ {[%emt 0:02:00]} 47. Kd4 {[%emt 0:00:00]} Rc7 {[%emt 0:01:24]} 48. c6 {[%emt 0:00:00]} Ke7 {[%emt 0:00:34]} 49. Ke4 {[%emt 0:00:00]} 1-0

[Event "FIDE World Junior U20-ch Girls 2025"]
[Site "Petrovac"]
[Date "2025.02.28"]
[Round "4.8"]
[White "Mgeladze, Kesaria"]
[Black "Karmanova, Olga Dm."]
[Result "1-0"]
[Annotator "ChessBase"]
[ECO "B11"]
[WhiteElo "2219"]
[BlackElo "2292"]
[PlyCount "119"]
[EventDate "2025.02.23"]
[EventType "swiss"]
[EventCountry "MNE"]
[SourceTitle "playchess.com"]
[Source "ChessBase"]
[SourceQuality "1"]
[TimeControl "40/5400+30:1800+30"]

1. e4 {[%emt 0:00:02]} c6 {[%emt 0:00:05]} 2. Nf3 {[%emt 0:00:04]} d5 {[%emt 0:00:05]} 3. Nc3 {[%emt 0:00:05]} Bg4 {[%emt 0:00:04]} 4. h3 {[%emt 0:00:06]} Bxf3 {[%emt 0:00:05]} 5. Qxf3 {[%emt 0:00:04]} e6 {[%emt 0:00:09]} 6. g3 {[%emt 0:00:06]} Bc5 {[%emt 0:00:11]} 7. Bg2 {[%emt 0:00:19]} Nd7 {[%emt 0:00:19]} 8. O-O {[%emt 0:00:44]} d4 {[%emt 0:00:17]} 9. Nb1 {[%emt 0:01:14]} h5 {[%emt 0:00:26]} 10. d3 {[%emt 0:02:07]} h4 {[%emt 0:05:44]} 11. g4 {[%emt 0:02:01]} Ne7 {[%emt 0:02:59]} 12. Qe2 {[%emt 0:04:17]} Ng6 {[%emt 0:02:25]} 13. f4 {[%emt 0:01:31]} e5 {[%emt 0:00:16]} 14. f5 {[%emt 0:02:15]} Ngf8 {[%emt 0:00:46]} 15. Nd2 {[%emt 0:01:03]} Be7 {[%emt 0:04:27]} 16. Nf3 {[%emt 0:06:20]} a5 {[%emt 0:01:44]} 17. Kh1 {[%emt 0:21:36]} a4 {[%emt 0:02:51]} 18. a3 {[%emt 0:00:29]} Nh7 {[%emt 0:09:51]} 19. Qd2 {[%emt 0:05:35]} Nhf6 {[%emt 0:01:44]} 20. Qf2 {[%emt 0:08:29]} Nxg4 {[%emt 0:15:12]} 21. hxg4 {[%emt 0:00:08]} h3 {[%emt 0:00:02]} 22. Qg3 {[%emt 0:06:18]} hxg2+ {[%emt 0:04:39]} 23. Kxg2 {[%emt 0:00:08]} Qa5 {[%emt 0:00:30]} 24. Bd2 {[%emt 0:04:36]} Qb5 {[%emt 0:00:24]} 25. Rab1 {[%emt 0:00:06]} O-O-O {[%emt 0:05:06]} 26. b4 {[%emt 0:01:36]} axb3 {[%emt 0:04:19]} 27. Rxb3 {[%emt 0:00:29]} Qa4 {[%emt 0:00:18]} 28. Rfb1 {[%emt 0:08:44]} b5 {[%emt 0:02:30]} 29. Bb4 {[%emt 0:05:05]} Rde8 {[%emt 0:07:39]} 30. Bxe7 {[%emt 0:05:32]} Rxe7 {[%emt 0:00:06]} 31. R1b2 {[%emt 0:01:48]} Rhe8 {[%emt 0:16:09]} 32. Ra2 {[%emt 0:03:21]} Nc5 {[%emt 0:01:08]} 33. Rb1 {[%emt 0:00:31]} Qa5 {[%emt 0:02:30]} 34. Rh1 {[%emt 0:01:03]} b4 {[%emt 0:03:27]} 35. Qe1 {[%emt 0:00:20]} Ra7 {[%emt 0:01:13]} 36. Rh7 {[%emt 0:03:15]} f6 {[%emt 0:01:09]} 37. Ra1 {[%emt 0:00:15]} Qa4 {[%emt 0:01:31]} 38. Qc1 {[%emt 0:04:05]} bxa3 {[%emt 0:04:35]} 39. Nd2 {[%emt 0:00:03]} a2 {[%emt 0:02:14]} 40. Nc4 {[%emt 0:00:19]} Kd8 {[%emt 0:00:19]} 41. Qb2 {[%emt 0:33:28]} Ke7 {[%emt 0:08:05]} 42. Rxg7+ {[%emt 0:00:00]} Kf8 {[%emt 0:00:05]} 43. Rxa7 {[%emt 0:00:00]} Qxa7 {[%emt 0:00:05]} 44. Qxa2 {[%emt 0:00:00]} Qg7 {[%emt 0:00:15]} 45. Kg3 {[%emt 0:00:00]} Qh6 {[%emt 0:05:31]} 46. Rf1 {[%emt 0:00:00]} Nb7 {[%emt 0:00:10]} 47. Qa3+ {[%emt 0:00:00]} c5 {[%emt 0:08:55]} 48. Qc1 {[%emt 0:00:00]} Qg7 {[%emt 0:00:06]} 49. Rh1 {[%emt 0:00:00]} Ra8 {[%emt 0:00:04]} 50. Nb6 {[%emt 0:00:00]} Ra6 {[%emt 0:02:20]} 51. Nd5 {[%emt 0:00:00]} c4 {[%emt 0:02:40]} 52. Qb1 {[%emt 0:01:00]} Rc6 {[%emt 0:02:17]} 53. Qb4+ {[%emt 0:00:56]} Nd6 {[%emt 0:01:20]} 54. Ra1 {[%emt 0:02:02]} Qh6 {[%emt 0:03:05]} 55. Ra8+ {[%emt 0:00:34]} Kg7 {[%emt 0:00:16]} 56. Ra7+ {[%emt 0:00:12]} Kh8 {[%emt 0:00:44]} 57. Qb8+ {[%emt 0:00:20]} Nc8 {[%emt 0:00:05]} 58. Rd7 {[%emt 0:01:22]} Qf8 {[%emt 0:01:10]} 59. Qb7 {[%emt 0:00:53]} Rd6 {[%emt 0:02:12]} 60. Rf7 {[%emt 0:00:21]} 1-0

[Event "FIDE World Junior U20-ch Girls 2025"]
[Site "Petrovac"]
[Date "2025.02.28"]
[Round "4.9"]
[White "Yakimova, Mariya"]
[Black "Mungunzul, Bat-Erdene"]
[Result "1-0"]
[Annotator "ChessBase"]
[ECO "A56"]
[WhiteElo "2201"]
[BlackElo "2268"]
[PlyCount "125"]
[EventDate "2025.02.23"]
[EventType "swiss"]
[EventCountry "MNE"]
[SourceTitle "playchess.com"]
[Source "ChessBase"]
[SourceQuality "1"]
[TimeControl "40/5400+30:1800+30"]

1. d4 {[%emt 0:00:05]} Nf6 {[%emt 0:00:07]} 2. c4 {[%emt 0:00:07]} c5 {[%emt 0:00:08]} 3. d5 {[%emt 0:00:04]} g6 {[%emt 0:00:17]} 4. Nc3 {[%emt 0:00:08]} d6 {[%emt 0:00:17]} 5. e4 {[%emt 0:00:13]} Bg7 {[%emt 0:00:09]} 6. h3 {[%emt 0:00:07]} O-O {[%emt 0:00:41]} 7. Nf3 {[%emt 0:00:05]} e6 {[%emt 0:00:23]} 8. Be2 {[%emt 0:00:05]} Na6 {[%emt 0:00:26]} 9. O-O {[%emt 0:00:12]} e5 {[%emt 0:00:16]} 10. g4 {[%emt 0:03:04]} h5 {[%emt 0:01:58]} 11. Ng5 {[%emt 0:00:48]} Nh7 {[%emt 0:10:34]} 12. Nxh7 {[%emt 0:05:37]} Kxh7 {[%emt 0:00:11]} 13. Kg2 {[%emt 0:05:42]} hxg4 {[%emt 0:12:38]} 14. hxg4 {[%emt 0:00:09]} Rh8 {[%emt 0:00:07]} 15. Rh1+ {[%emt 0:01:39]} Kg8 {[%emt 0:00:07]} 16. Rxh8+ {[%emt 0:00:46]} Bxh8 {[%emt 0:00:54]} 17. Be3 {[%emt 0:05:13]} Nc7 {[%emt 0:09:55]} 18. Qh1 {[%emt 0:07:37]} Bg7 {[%emt 0:05:15]} 19. g5 {[%emt 0:03:55]} Bd7 {[%emt 0:07:42]} 20. a4 {[%emt 0:09:27]} Ne8 {[%emt 0:06:31]} 21. Bd2 {[%emt 0:06:07]} Rb8 {[%emt 0:00:59]} 22. Qh4 {[%emt 0:03:47]} a6 {[%emt 0:01:57]} 23. a5 {[%emt 0:07:49]} b5 {[%emt 0:02:48]} 24. axb6 {[%emt 0:00:11]} Rxb6 {[%emt 0:02:37]} 25. Nd1 {[%emt 0:00:12]} Rb3 {[%emt 0:04:33]} 26. Bc3 {[%emt 0:00:23]} a5 {[%emt 0:09:27]} 27. Ne3 {[%emt 0:01:24]} a4 {[%emt 0:00:10]} 28. Bd1 {[%emt 0:02:33]} Rb7 {[%emt 0:00:25]} 29. Bg4 {[%emt 0:01:24]} f6 {[%emt 0:03:33]} 30. Bxd7 {[%emt 0:16:42]} Qxd7 {[%emt 0:00:10]} 31. f3 {[%emt 0:10:01]} Ra7 {[%emt 0:02:38]} 32. Qg4 {[%emt 0:04:04]} Qe7 {[%emt 0:00:19]} 33. gxf6 {[%emt 0:00:45]} Qxf6 {[%emt 0:00:25]} 34. Qc8 {[%emt 0:00:43]} Qg5+ {[%emt 0:02:14]} 35. Ng4 {[%emt 0:00:50]} Kf8 {[%emt 0:00:04]} 36. b4 {[%emt 0:04:28]} Rc7 {[%emt 0:12:39]} 37. Qe6 {[%emt 0:00:06]} Re7 {[%emt 0:03:47]} 38. Qc8 {[%emt 0:00:03]} Rc7 {[%emt 0:00:03]} 39. Qb8 {[%emt 0:00:05]} cxb4 {[%emt 0:01:51]} 40. Bxb4 {[%emt 0:02:09]} Qe7 {[%emt 0:00:13]} 41. Rxa4 {[%emt 0:08:55]} Kf7 {[%emt 0:06:36]} 42. Ra8 {[%emt 0:04:56]} Rb7 {[%emt 0:07:19]} 43. Qxe8+ {[%emt 0:00:07]} Qxe8 {[%emt 0:00:03]} 44. Rxe8 {[%emt 0:00:06]} Kxe8 {[%emt 0:00:07]} 45. Bxd6 {[%emt 0:00:05]} Rb2+ {[%emt 0:00:05]} 46. Kg3 {[%emt 0:00:17]} Rc2 {[%emt 0:00:05]} 47. c5 {[%emt 0:00:49]} Kd7 {[%emt 0:00:25]} 48. Bxe5 {[%emt 0:00:23]} Bf8 {[%emt 0:00:07]} 49. c6+ {[%emt 0:01:06]} Kc8 {[%emt 0:00:05]} 50. Ne3 {[%emt 0:02:40]} Rc1 {[%emt 0:00:16]} 51. Bb2 {[%emt 0:01:34]} Rg1+ {[%emt 0:00:48]} 52. Kf2 {[%emt 0:00:10]} Rh1 {[%emt 0:00:13]} 53. Bd4 {[%emt 0:02:22]} Rc1 {[%emt 0:00:14]} 54. Ng4 {[%emt 0:00:38]} Bb4 {[%emt 0:01:20]} 55. Ne5 {[%emt 0:01:25]} Rc2+ {[%emt 0:01:08]} 56. Kg3 {[%emt 0:02:49]} Bd6 {[%emt 0:00:11]} 57. Kg4 {[%emt 0:05:50]} Rd2 {[%emt 0:01:15]} 58. Nc4 {[%emt 0:01:18]} Rg2+ {[%emt 0:00:11]} 59. Kh4 {[%emt 0:00:04]} Bb4 {[%emt 0:01:41]} 60. Be5 {[%emt 0:01:26]} Bc5 {[%emt 0:02:57]} 61. Nd6+ {[%emt 0:00:06]} Bxd6 {[%emt 0:00:15]} 62. Bxd6 {[%emt 0:00:04]} Rg1 {[%emt 0:00:08]} 63. Be5 {[%emt 0:00:10]} 1-0

[Event "FIDE World Junior U20-ch Girls 2025"]
[Site "Petrovac"]
[Date "2025.02.28"]
[Round "4.10"]
[White "Pipiras, Filipa Fortuna"]
[Black "Lu, Miaoyi"]
[Result "0-1"]
[Annotator "ChessBase"]
[ECO "E20"]
[WhiteElo "2200"]
[BlackElo "2432"]
[PlyCount "88"]
[EventDate "2025.02.23"]
[EventType "swiss"]
[EventCountry "MNE"]
[SourceTitle "playchess.com"]
[Source "ChessBase"]
[SourceQuality "1"]
[TimeControl "40/5400+30:1800+30"]

1. d4 {[%emt 0:00:10]} Nf6 {[%emt 0:00:02]} 2. c4 {[%emt 0:00:10]} e6 {[%emt 0:00:01]} 3. Nc3 {[%emt 0:00:18]} Bb4 {[%emt 0:00:03]} 4. f3 {[%emt 0:00:23]} O-O {[%emt 0:00:49]} 5. a3 {[%emt 0:00:46]} Bxc3+ {[%emt 0:00:07]} 6. bxc3 {[%emt 0:00:07]} Ne8 {[%emt 0:00:05]} 7. e4 {[%emt 0:00:48]} c5 {[%emt 0:00:13]} 8. h4 {[%emt 0:08:09]} d5 {[%emt 0:08:32]} 9. cxd5 {[%emt 0:03:56]} exd5 {[%emt 0:00:31]} 10. e5 {[%emt 0:00:22]} f6 {[%emt 0:04:03]} 11. f4 {[%emt 0:06:56]} cxd4 {[%emt 0:15:50]} 12. cxd4 {[%emt 0:00:12]} Nc6 {[%emt 0:03:16]} 13. Be3 {[%emt 0:11:19]} Qa5+ {[%emt 0:17:27]} 14. Qd2 {[%emt 0:01:40]} Qxd2+ {[%emt 0:00:03]} 15. Kxd2 {[%emt 0:00:09]} fxe5 {[%emt 0:10:04]} 16. fxe5 {[%emt 0:06:41]} Nc7 {[%emt 0:02:50]} 17. Bd3 {[%emt 0:10:51]} Bf5 {[%emt 0:02:15]} 18. Nf3 {[%emt 0:05:04]} Ne6 {[%emt 0:09:20]} 19. Rab1 {[%emt 0:07:15]} b6 {[%emt 0:08:50]} 20. Rhc1 {[%emt 0:05:55]} Na5 {[%emt 0:00:14]} 21. Rb5 {[%emt 0:09:16]} h6 {[%emt 0:09:06]} 22. Bxf5 {[%emt 0:15:37]} Rxf5 {[%emt 0:00:02]} 23. Kd3 {[%emt 0:03:38]} Rd8 {[%emt 0:00:05]} 24. Rxd5 {[%emt 0:00:39]} Rxd5 {[%emt 0:01:36]} 25. Ke4 {[%emt 0:00:05]} Rxf3 {[%emt 0:02:35]} 26. Kxd5 {[%emt 0:01:22]} Rxe3 {[%emt 0:01:49]} 27. Kxe6 {[%emt 0:00:09]} b5 {[%emt 0:02:59]} 28. Rc8+ {[%emt 0:00:05]} Kh7 {[%emt 0:00:03]} 29. Rc7 {[%emt 0:01:36]} Nb3 {[%emt 0:01:26]} 30. d5 {[%emt 0:00:36]} Nd4+ {[%emt 0:00:27]} 31. Kd6 {[%emt 0:00:07]} b4 {[%emt 0:00:15]} 32. axb4 {[%emt 0:01:00]} Nb5+ {[%emt 0:00:02]} 33. Kc6 {[%emt 0:00:06]} Nxc7 {[%emt 0:00:58]} 34. Kxc7 {[%emt 0:00:07]} Kg6 {[%emt 0:00:53]} 35. d6 {[%emt 0:01:31]} Kf7 {[%emt 0:00:03]} 36. d7 {[%emt 0:00:40]} Rc3+ {[%emt 0:00:02]} 37. Kd6 {[%emt 0:00:19]} Rd3+ {[%emt 0:00:02]} 38. Kc7 {[%emt 0:00:22]} Ke7 {[%emt 0:00:01]} 39. e6 {[%emt 0:00:06]} Rc3+ {[%emt 0:00:41]} 40. Kb7 {[%emt 0:00:25]} Rc4 {[%emt 0:00:59]} 41. b5 {[%emt 0:03:54]} Rc5 {[%emt 0:00:02]} 42. b6 {[%emt 0:03:44]} axb6 {[%emt 0:02:01]} 43. Kxb6 {[%emt 0:00:05]} Rc2 {[%emt 0:00:14]} 44. g4 {[%emt 0:00:19]} Kd8 {[%emt 0:00:04]} 0-1